[Event "Titled Tuesday Blitz August 1 Early 2023"]
[White "Thiel, Thomas"]
[Black "Gauravthegm"]
[WhiteFideId "4615964"]
[WhiteElo "2261"]
[BlackElo "2370"]
[Result "0-1"]
[Round "10"]
[TimeControl "180+1"]
[Date "2023.08.01"]
[WhiteClock "0:01:17"]
[BlackClock "0:01:24"]
[Board "149"]

1. e4 {[%clk 0:03:00]}  c5 {[%clk 0:02:56]} 2. Nc3 {[%clk 0:02:58]}  Nc6 {[%clk 0:02:53]} 3. Bb5 {[%clk 0:02:57]}  g6 {[%clk 0:02:51]} 4. Bxc6 {[%clk 0:02:57]}  bxc6 {[%clk 0:02:51]} 5. f4 {[%clk 0:02:55]}  d6 {[%clk 0:02:50]} 6. Nf3 {[%clk 0:02:53]}  Bg7 {[%clk 0:02:50]} 7. O-O {[%clk 0:02:52]}  Nf6 {[%clk 0:02:49]} 8. d3 {[%clk 0:02:52]}  O-O {[%clk 0:02:48]} 9. Qe1 {[%clk 0:02:52]}  Rb8 {[%clk 0:02:48]} 10. Qh4 {[%clk 0:02:45]}  Ne8 {[%clk 0:02:36]} 11. f5 {[%clk 0:02:42]}  Bd7 {[%clk 0:02:29]} 12. fxg6 {[%clk 0:02:29]}  fxg6 {[%clk 0:02:25]} 13. Bg5 {[%clk 0:02:23]}  Rf7 {[%clk 0:02:19]} 14. Rab1 {[%clk 0:02:19]}  Be6 {[%clk 0:02:04]} 15. e5 {[%clk 0:02:17]}  dxe5 {[%clk 0:01:59]} 16. b3 {[%clk 0:02:16]}  Bd5 {[%clk 0:01:51]} 17. Ne4 {[%clk 0:02:13]}  Nf6 {[%clk 0:01:50]} 18. Bh6 {[%clk 0:01:53]}  Nxe4 {[%clk 0:01:44]} 19. dxe4 {[%clk 0:01:50]}  Bxe4 {[%clk 0:01:35]} 20. Bxg7 {[%clk 0:01:28]}  Bxf3 {[%clk 0:01:34]} 21. Bxe5 {[%clk 0:01:27]}  Rb4 {[%clk 0:01:26]} 22. Rxf3 {[%clk 0:01:17]}  Rxh4 {[%clk 0:01:24]} 0-1


[Site "https://www.chess.com"]

[Event "Titled Tuesday Blitz August 1 Early 2023"]
[White "Tuleyeva-Aketayeva, Dana"]
[Black "Shapiro, Daniel"]
[WhiteFideId "13701932"]
[BlackFideId "2001780"]
[WhiteElo "2237"]
[BlackElo "2352"]
[Result "0-1"]
[Round "10"]
[TimeControl "180+1"]
[Date "2023.08.01"]
[WhiteClock "0:00:01"]
[BlackClock "0:00:18"]
[Board "150"]

1. d4 {[%clk 0:03:00]}  Nf6 {[%clk 0:02:59]} 2. Nf3 {[%clk 0:03:01]}  b6 {[%clk 0:02:58]} 3. g3 {[%clk 0:03:01]}  d5 {[%clk 0:02:56]} 4. Bg2 {[%clk 0:03:01]}  e6 {[%clk 0:02:56]} 5. O-O {[%clk 0:03:01]}  Be7 {[%clk 0:02:56]} 6. c4 {[%clk 0:03:00]}  c6 {[%clk 0:02:56]} 7. Nc3 {[%clk 0:02:58]}  Bb7 {[%clk 0:02:56]} 8. Nd2 {[%clk 0:02:58]}  Nbd7 {[%clk 0:02:57]} 9. e4 {[%clk 0:02:58]}  O-O {[%clk 0:02:56]} 10. b3 {[%clk 0:02:48]}  Rc8 {[%clk 0:02:51]} 11. Bb2 {[%clk 0:02:48]}  a5 {[%clk 0:02:50]} 12. Rc1 {[%clk 0:02:45]}  Ba6 {[%clk 0:02:13]} 13. Re1 {[%clk 0:02:44]}  dxe4 {[%clk 0:01:45]} 14. Ndxe4 {[%clk 0:02:44]}  Re8 {[%clk 0:01:39]} 15. d5 {[%clk 0:02:21]}  exd5 {[%clk 0:01:18]} 16. cxd5 {[%clk 0:02:21]}  Nxe4 {[%clk 0:01:17]} 17. Nxe4 {[%clk 0:01:47]}  cxd5 {[%clk 0:01:07]} 18. Qxd5 {[%clk 0:01:47]}  Nc5 {[%clk 0:00:52]} 19. Nxc5 {[%clk 0:00:46]}  Qxd5 {[%clk 0:00:42]} 20. Bxd5 {[%clk 0:00:46]}  Bxc5 {[%clk 0:00:41]} 21. Kg2 {[%clk 0:00:40]}  Red8 {[%clk 0:00:37]} 22. Rcd1 {[%clk 0:00:32]}  Rxd5 {[%clk 0:00:35]} 23. Rxd5 {[%clk 0:00:29]}  Bb7 {[%clk 0:00:35]} 24. Re5 {[%clk 0:00:19]}  Rd8 {[%clk 0:00:34]} 25. Kf1 {[%clk 0:00:08]}  Bxd5 {[%clk 0:00:33]} 26. Rg5 {[%clk 0:00:08]}  Bf8 {[%clk 0:00:27]} 27. Bf6 {[%clk 0:00:05]}  Rd6 {[%clk 0:00:22]} 28. Bb2 {[%clk 0:00:04]}  Bf3 {[%clk 0:00:19]} 29. Ke1 {[%clk 0:00:01]}  Rd1# {[%clk 0:00:18]} 0-1


[Site "https://www.chess.com"]

[Event "Titled Tuesday Blitz August 1 Early 2023"]
[White "Topalov, Aleksandar"]
[Black "hsd2016"]
[WhiteFideId "925659"]
[WhiteElo "2351"]
[BlackElo "2235"]
[Result "1-0"]
[Round "10"]
[TimeControl "180+1"]
[Date "2023.08.01"]
[WhiteClock "0:01:19"]
[BlackClock "0:01:28"]
[Board "151"]

1. b3 {[%clk 0:02:54]}  c5 {[%clk 0:02:59]} 2. Bb2 {[%clk 0:02:53]}  Nc6 {[%clk 0:02:59]} 3. c4 {[%clk 0:02:52]}  Nf6 {[%clk 0:02:58]} 4. e3 {[%clk 0:02:53]}  g6 {[%clk 0:02:58]} 5. Nf3 {[%clk 0:02:52]}  Bg7 {[%clk 0:02:58]} 6. Be2 {[%clk 0:02:52]}  O-O {[%clk 0:02:59]} 7. O-O {[%clk 0:02:52]}  d6 {[%clk 0:02:59]} 8. d4 {[%clk 0:02:52]}  cxd4 {[%clk 0:02:57]} 9. Nxd4 {[%clk 0:02:52]}  Nxd4 {[%clk 0:02:55]} 10. Qxd4 {[%clk 0:02:51]}  Bd7 {[%clk 0:02:55]} 11. Nc3 {[%clk 0:02:51]}  Bc6 {[%clk 0:02:55]} 12. Qd2 {[%clk 0:02:44]}  Qd7 {[%clk 0:02:54]} 13. Rfd1 {[%clk 0:02:42]}  Qf5 {[%clk 0:02:53]} 14. Bf1 {[%clk 0:02:36]}  Rad8 {[%clk 0:02:52]} 15. Rac1 {[%clk 0:02:35]}  d5 {[%clk 0:02:47]} 16. cxd5 {[%clk 0:02:18]}  Nxd5 {[%clk 0:02:39]} 17. e4 {[%clk 0:02:09]}  Nxc3 {[%clk 0:02:39]} 18. Qxd8 {[%clk 0:02:08]}  Nxd1 {[%clk 0:02:29]} 19. Qxf8+ {[%clk 0:02:06]}  Kxf8 {[%clk 0:02:29]} 20. exf5 {[%clk 0:02:06]}  Nxb2 {[%clk 0:02:29]} 21. fxg6 {[%clk 0:01:58]}  hxg6 {[%clk 0:02:29]} 22. Bb5 {[%clk 0:01:55]}  Nd3 {[%clk 0:02:04]} 23. Bxd3 {[%clk 0:01:53]}  Bd4 {[%clk 0:02:01]} 24. Kf1 {[%clk 0:01:45]}  e5 {[%clk 0:02:00]} 25. a4 {[%clk 0:01:42]}  f5 {[%clk 0:02:00]} 26. f3 {[%clk 0:01:41]}  Ke7 {[%clk 0:01:59]} 27. Bb5 {[%clk 0:01:39]}  Bxb5+ {[%clk 0:01:53]} 28. axb5 {[%clk 0:01:39]}  Kd6 {[%clk 0:01:54]} 29. Ke2 {[%clk 0:01:37]}  Bc5 {[%clk 0:01:50]} 30. Rd1+ {[%clk 0:01:34]}  Kc7 {[%clk 0:01:50]} 31. Kd3 {[%clk 0:01:32]}  Kb6 {[%clk 0:01:40]} 32. Kc4 {[%clk 0:01:32]}  Bd4 {[%clk 0:01:41]} 33. f4 {[%clk 0:01:30]}  Bb2 {[%clk 0:01:37]} 34. fxe5 {[%clk 0:01:28]}  Bxe5 {[%clk 0:01:37]} 35. h3 {[%clk 0:01:29]}  a6 {[%clk 0:01:33]} 36. bxa6 {[%clk 0:01:28]}  bxa6 {[%clk 0:01:34]} 37. Rd5 {[%clk 0:01:27]}  Bg3 {[%clk 0:01:33]} 38. Rd3 {[%clk 0:01:20]}  Be5 {[%clk 0:01:28]} 39. Re3 {[%clk 0:01:19]} 1-0


[Site "https://www.chess.com"]

[Event "Titled Tuesday Blitz August 1 Early 2023"]
[White "Nithyalakshmi, Sivanesan"]
[Black "UgarteCesar"]
[WhiteFideId "5706955"]
[WhiteElo "2350"]
[BlackElo "2219"]
[Result "1-0"]
[Round "10"]
[TimeControl "180+1"]
[Date "2023.08.01"]
[WhiteClock "0:00:20"]
[BlackClock "0:00:07"]
[Board "152"]

1. e4 {[%clk 0:03:00]}  c5 {[%clk 0:02:59]} 2. Nc3 {[%clk 0:03:00]}  Nc6 {[%clk 0:03:00]} 3. f4 {[%clk 0:03:00]}  g6 {[%clk 0:03:00]} 4. Nf3 {[%clk 0:02:59]}  Bg7 {[%clk 0:03:00]} 5. Bc4 {[%clk 0:03:00]}  e6 {[%clk 0:03:00]} 6. d3 {[%clk 0:03:00]}  a6 {[%clk 0:03:01]} 7. O-O {[%clk 0:02:59]}  Nge7 {[%clk 0:03:01]} 8. Qe1 {[%clk 0:02:59]}  d5 {[%clk 0:03:01]} 9. exd5 {[%clk 0:02:58]}  Nd4 {[%clk 0:02:53]} 10. dxe6 {[%clk 0:02:53]}  fxe6 {[%clk 0:02:36]} 11. Nxd4 {[%clk 0:02:42]}  cxd4 {[%clk 0:02:29]} 12. Nd1 {[%clk 0:02:37]}  Qd6 {[%clk 0:02:18]} 13. Nf2 {[%clk 0:02:29]}  b5 {[%clk 0:02:14]} 14. Ne4 {[%clk 0:02:27]}  Qb6 {[%clk 0:02:13]} 15. Bb3 {[%clk 0:02:26]}  h6 {[%clk 0:02:01]} 16. Qh4 {[%clk 0:02:09]}  Nf5 {[%clk 0:01:56]} 17. Qh3 {[%clk 0:02:06]}  O-O {[%clk 0:01:50]} 18. g4 {[%clk 0:01:59]}  Nd6 {[%clk 0:01:46]} 19. Re1 {[%clk 0:01:55]}  Nxe4 {[%clk 0:01:41]} 20. Rxe4 {[%clk 0:01:50]}  Bd7 {[%clk 0:01:40]} 21. g5 {[%clk 0:01:44]}  hxg5 {[%clk 0:01:33]} 22. Bxe6+ {[%clk 0:01:43]}  Bxe6 {[%clk 0:01:24]} 23. Rxe6 {[%clk 0:01:39]}  Qc5 {[%clk 0:01:05]} 24. Bd2 {[%clk 0:01:13]}  Qxc2 {[%clk 0:01:00]} 25. Bb4 {[%clk 0:01:12]}  Rxf4 {[%clk 0:00:56]} 26. Rf1 {[%clk 0:01:06]}  Rh4 {[%clk 0:00:47]} 27. Qg2 {[%clk 0:01:04]}  Qxg2+ {[%clk 0:00:44]} 28. Kxg2 {[%clk 0:01:05]}  Rc8 {[%clk 0:00:41]} 29. Rf2 {[%clk 0:00:58]}  Rf4 {[%clk 0:00:39]} 30. Rfe2 {[%clk 0:00:55]}  Rf6 {[%clk 0:00:34]} 31. Rxf6 {[%clk 0:00:43]}  Bxf6 {[%clk 0:00:34]} 32. Kg3 {[%clk 0:00:44]}  Kf7 {[%clk 0:00:34]} 33. Kg4 {[%clk 0:00:44]}  Re8 {[%clk 0:00:34]} 34. Rxe8 {[%clk 0:00:40]}  Kxe8 {[%clk 0:00:35]} 35. Bd2 {[%clk 0:00:40]}  Be5 {[%clk 0:00:32]} 36. h3 {[%clk 0:00:40]}  Kf7 {[%clk 0:00:31]} 37. Bxg5 {[%clk 0:00:38]}  a5 {[%clk 0:00:30]} 38. b3 {[%clk 0:00:37]}  a4 {[%clk 0:00:30]} 39. bxa4 {[%clk 0:00:36]}  bxa4 {[%clk 0:00:31]} 40. Kf3 {[%clk 0:00:36]}  Ke6 {[%clk 0:00:31]} 41. Ke4 {[%clk 0:00:37]}  Bg7 {[%clk 0:00:30]} 42. Bd2 {[%clk 0:00:35]}  Bf6 {[%clk 0:00:20]} 43. Bc1 {[%clk 0:00:34]}  Kd6 {[%clk 0:00:11]} 44. Ba3+ {[%clk 0:00:34]}  Kc6 {[%clk 0:00:12]} 45. Bb4 {[%clk 0:00:30]}  Kb5 {[%clk 0:00:11]} 46. Be1 {[%clk 0:00:25]}  Kc5 {[%clk 0:00:11]} 47. Bf2 {[%clk 0:00:24]}  Bg7 {[%clk 0:00:11]} 48. Bg1 {[%clk 0:00:23]}  Bf6 {[%clk 0:00:12]} 49. Bh2 {[%clk 0:00:23]}  Bg7 {[%clk 0:00:12]} 50. a3 {[%clk 0:00:22]}  Bf6 {[%clk 0:00:11]} 51. Be5 {[%clk 0:00:22]}  Bxe5 {[%clk 0:00:09]} 52. Kxe5 {[%clk 0:00:22]}  g5 {[%clk 0:00:10]} 53. Kf5 {[%clk 0:00:22]}  g4 {[%clk 0:00:08]} 54. hxg4 {[%clk 0:00:22]}  Kd6 {[%clk 0:00:06]} 55. Kf6 {[%clk 0:00:22]}  Kd7 {[%clk 0:00:06]} 56. Kf7 {[%clk 0:00:23]}  Kd6 {[%clk 0:00:05]} 57. g5 {[%clk 0:00:23]}  Ke5 {[%clk 0:00:06]} 58. g6 {[%clk 0:00:24]}  Kf4 {[%clk 0:00:07]} 59. g7 {[%clk 0:00:24]}  Ke3 {[%clk 0:00:08]} 60. g8=Q {[%clk 0:00:24]}  Kxd3 {[%clk 0:00:09]} 61. Qg2 {[%clk 0:00:23]}  Kc3 {[%clk 0:00:09]} 62. Ke6 {[%clk 0:00:21]}  Kb3 {[%clk 0:00:10]} 63. Kd5 {[%clk 0:00:21]}  Kxa3 {[%clk 0:00:11]} 64. Kxd4 {[%clk 0:00:21]}  Kb3 {[%clk 0:00:10]} 65. Qb7+ {[%clk 0:00:20]}  Ka2 {[%clk 0:00:10]} 66. Kc3 {[%clk 0:00:21]}  a3 {[%clk 0:00:11]} 67. Qb3+ {[%clk 0:00:20]}  Ka1 {[%clk 0:00:07]} 68. Kc2 {[%clk 0:00:20]} 1-0


[Site "https://www.chess.com"]

[Event "Titled Tuesday Blitz August 1 Early 2023"]
[White "Mayaud, Raphael"]
[Black "Tagliata"]
[WhiteFideId "627151"]
[WhiteElo "2347"]
[BlackElo "2211"]
[Result "1-0"]
[Round "10"]
[TimeControl "180+1"]
[Date "2023.08.01"]
[WhiteClock "0:01:06"]
[BlackClock "0:02:03"]
[Board "153"]

1. d4 {[%clk 0:01:54]}  d5 {[%clk 0:02:56]} 2. Nf3 {[%clk 0:01:53]}  Nf6 {[%clk 0:02:52]} 3. c4 {[%clk 0:01:52]}  e6 {[%clk 0:02:53]} 4. g3 {[%clk 0:01:52]}  Bb4+ {[%clk 0:02:48]} 5. Bd2 {[%clk 0:01:50]}  Bxd2+ {[%clk 0:02:47]} 6. Nbxd2 {[%clk 0:01:50]}  O-O {[%clk 0:02:47]} 7. Bg2 {[%clk 0:01:50]}  c5 {[%clk 0:02:45]} 8. dxc5 {[%clk 0:01:48]}  Na6 {[%clk 0:02:42]} 9. O-O {[%clk 0:01:48]}  Nxc5 {[%clk 0:02:41]} 10. Nb3 {[%clk 0:01:35]}  Nce4 {[%clk 0:02:38]} 11. cxd5 {[%clk 0:01:33]}  Qxd5 {[%clk 0:02:36]} 12. Qxd5 {[%clk 0:01:32]}  Nxd5 {[%clk 0:02:37]} 13. Nfd4 {[%clk 0:01:28]}  Nef6 {[%clk 0:02:30]} 14. a3 {[%clk 0:01:25]}  b6 {[%clk 0:02:24]} 15. e4 {[%clk 0:01:20]}  Ne7 {[%clk 0:02:24]} 16. Nb5 {[%clk 0:01:11]}  Ba6 {[%clk 0:02:21]} 17. a4 {[%clk 0:01:10]}  Rac8 {[%clk 0:02:17]} 18. Rfc1 {[%clk 0:01:06]}  Rc7 {[%clk 0:02:03]} 19. Nxc7 {[%clk 0:01:06]} 1-0


[Site "https://www.chess.com"]

[Event "Titled Tuesday Blitz August 1 Early 2023"]
[White "Elissalt Cardenas, Hector"]
[Black "Mirzanurov, Bulat"]
[WhiteFideId "3500632"]
[BlackFideId "4184521"]
[WhiteElo "2332"]
[BlackElo "2181"]
[Result "1-0"]
[Round "10"]
[TimeControl "180+1"]
[Date "2023.08.01"]
[WhiteClock "0:00:15"]
[BlackClock "0:00:00"]
[Board "155"]

1. d4 {[%clk 0:03:00]}  d5 {[%clk 0:02:59]} 2. c4 {[%clk 0:03:00]}  e6 {[%clk 0:02:59]} 3. Nc3 {[%clk 0:03:00]}  c5 {[%clk 0:02:59]} 4. cxd5 {[%clk 0:02:59]}  exd5 {[%clk 0:02:58]} 5. Nf3 {[%clk 0:02:59]}  Nc6 {[%clk 0:02:57]} 6. Be3 {[%clk 0:02:59]}  c4 {[%clk 0:02:54]} 7. Bg5 {[%clk 0:02:58]}  Be7 {[%clk 0:02:52]} 8. Bxe7 {[%clk 0:02:58]}  Ngxe7 {[%clk 0:02:53]} 9. g3 {[%clk 0:02:56]}  O-O {[%clk 0:02:52]} 10. Bg2 {[%clk 0:02:57]}  f5 {[%clk 0:02:40]} 11. O-O {[%clk 0:02:55]}  Rb8 {[%clk 0:02:36]} 12. e3 {[%clk 0:02:33]}  h6 {[%clk 0:02:32]} 13. Ne5 {[%clk 0:02:31]}  Be6 {[%clk 0:02:31]} 14. f4 {[%clk 0:02:30]}  b5 {[%clk 0:02:27]} 15. a3 {[%clk 0:02:26]}  Na5 {[%clk 0:02:23]} 16. Qh5 {[%clk 0:02:12]}  Qe8 {[%clk 0:02:05]} 17. Qe2 {[%clk 0:01:54]}  Nb3 {[%clk 0:01:51]} 18. Rad1 {[%clk 0:01:53]}  Qd8 {[%clk 0:01:48]} 19. Bf3 {[%clk 0:01:45]}  a5 {[%clk 0:01:38]} 20. Qg2 {[%clk 0:01:45]}  b4 {[%clk 0:01:35]} 21. axb4 {[%clk 0:01:44]}  axb4 {[%clk 0:01:36]} 22. Na4 {[%clk 0:01:45]}  Qa5 {[%clk 0:01:31]} 23. Nc5 {[%clk 0:01:41]}  Nxc5 {[%clk 0:01:29]} 24. dxc5 {[%clk 0:01:41]}  Qxc5 {[%clk 0:01:30]} 25. Rd4 {[%clk 0:01:41]}  Rfd8 {[%clk 0:01:28]} 26. Rfd1 {[%clk 0:01:38]}  b3 {[%clk 0:01:27]} 27. Nxc4 {[%clk 0:01:35]}  Nc6 {[%clk 0:01:19]} 28. Ne5 {[%clk 0:00:50]}  Nxd4 {[%clk 0:01:13]} 29. exd4 {[%clk 0:00:48]}  Qb6 {[%clk 0:00:52]} 30. h3 {[%clk 0:00:48]}  Rbc8 {[%clk 0:00:52]} 31. Rd2 {[%clk 0:00:47]}  Ra8 {[%clk 0:00:44]} 32. Kh2 {[%clk 0:00:47]}  Ra4 {[%clk 0:00:44]} 33. Qf2 {[%clk 0:00:45]}  Qd6 {[%clk 0:00:37]} 34. g4 {[%clk 0:00:44]}  fxg4 {[%clk 0:00:36]} 35. hxg4 {[%clk 0:00:45]}  Rb8 {[%clk 0:00:33]} 36. Qg2 {[%clk 0:00:41]}  Rbb4 {[%clk 0:00:31]} 37. f5 {[%clk 0:00:39]}  Rxd4 {[%clk 0:00:30]} 38. Re2 {[%clk 0:00:31]}  Bf7 {[%clk 0:00:20]} 39. Qg3 {[%clk 0:00:30]}  Rf4 {[%clk 0:00:14]} 40. Nd3 {[%clk 0:00:21]}  Rxf3 {[%clk 0:00:07]} 41. Qxd6 {[%clk 0:00:19]}  Rxd3 {[%clk 0:00:07]} 42. Qd8+ {[%clk 0:00:17]}  Kh7 {[%clk 0:00:03]} 43. Qe7 {[%clk 0:00:17]}  Bg8 {[%clk 0:00:02]} 44. Qe8 {[%clk 0:00:17]}  Rxg4 {[%clk 0:00:01]} 45. Qe5 {[%clk 0:00:15]}  Rdg3 {[%clk 0:00:01]} 46. Qxg3 {[%clk 0:00:14]}  Rxg3 {[%clk 0:00:02]} 47. Kxg3 {[%clk 0:00:15]}  g6 {[%clk 0:00:03]} 48. fxg6+ {[%clk 0:00:15]}  Kxg6 {[%clk 0:00:03]} 49. Kf4 {[%clk 0:00:15]}  d4 {[%clk 0:00:03]} 50. Rd2 {[%clk 0:00:15]}  h5 {[%clk 0:00:03]} 51. Rxd4 {[%clk 0:00:15]}  Bh7 {[%clk 0:00:02]} 52. Rd6+ {[%clk 0:00:15]}  Kg7 {[%clk 0:00:00]} 53. Kg5 {[%clk 0:00:15]} 1-0


[Site "https://www.chess.com"]

[Event "Titled Tuesday Blitz August 1 Early 2023"]
[White "Zaksaite, Salomeja"]
[Black "Gopal, K.N."]
[WhiteFideId "12801496"]
[BlackFideId "5001447"]
[WhiteElo "2296"]
[BlackElo "2101"]
[Result "1-0"]
[Round "10"]
[TimeControl "180+1"]
[Date "2023.08.01"]
[WhiteClock "0:01:46"]
[BlackClock "0:00:12"]
[Board "159"]

1. e4 {[%clk 0:03:00]}  Nc6 {[%clk 0:02:58]} 2. Nf3 {[%clk 0:02:56]}  d6 {[%clk 0:02:52]} 3. d4 {[%clk 0:02:53]}  Nf6 {[%clk 0:02:52]} 4. Nc3 {[%clk 0:02:50]}  d5 {[%clk 0:02:51]} 5. e5 {[%clk 0:02:49]}  Ng8 {[%clk 0:02:47]} 6. Bb5 {[%clk 0:02:45]}  a6 {[%clk 0:02:45]} 7. Bd3 {[%clk 0:02:33]}  Bg4 {[%clk 0:02:43]} 8. Be3 {[%clk 0:02:32]}  e6 {[%clk 0:02:42]} 9. Ne2 {[%clk 0:02:18]}  Nb4 {[%clk 0:02:39]} 10. Ng3 {[%clk 0:02:13]}  Nxd3+ {[%clk 0:02:35]} 11. cxd3 {[%clk 0:02:12]}  Bb4+ {[%clk 0:02:10]} 12. Kf1 {[%clk 0:02:11]}  Qd7 {[%clk 0:02:02]} 13. Rc1 {[%clk 0:02:08]}  c6 {[%clk 0:02:01]} 14. h3 {[%clk 0:02:06]}  Bxf3 {[%clk 0:01:47]} 15. Qxf3 {[%clk 0:02:06]}  Ne7 {[%clk 0:01:45]} 16. Nh5 {[%clk 0:02:05]}  O-O {[%clk 0:01:31]} 17. h4 {[%clk 0:01:58]}  Ng6 {[%clk 0:01:21]} 18. Nxg7 {[%clk 0:01:47]}  Kxg7 {[%clk 0:01:19]} 19. Qf6+ {[%clk 0:01:46]}  Kg8 {[%clk 0:00:12]} 20. Bh6 {[%clk 0:01:46]} 1-0


[Site "https://www.chess.com"]

[Event "Titled Tuesday Blitz August 1 Early 2023"]
[White "Stachanczyk, Jacek"]
[Black "Quirke, Jeffrey"]
[WhiteFideId "1116657"]
[BlackFideId "2013029"]
[WhiteElo "2402"]
[BlackElo "2242"]
[Result "1-0"]
[Round "10"]
[TimeControl "180+1"]
[Date "2023.08.01"]
[WhiteClock "0:00:53"]
[BlackClock "0:00:00"]
[Board "160"]

1. e4 {[%clk 0:02:51]}  e6 {[%clk 0:02:58]} 2. c4 {[%clk 0:02:47]}  d5 {[%clk 0:02:58]} 3. exd5 {[%clk 0:02:48]}  exd5 {[%clk 0:02:58]} 4. d4 {[%clk 0:02:49]}  Nf6 {[%clk 0:02:58]} 5. Nc3 {[%clk 0:02:49]}  Bb4 {[%clk 0:02:51]} 6. Ne2 {[%clk 0:02:38]}  O-O {[%clk 0:02:48]} 7. cxd5 {[%clk 0:02:37]}  Nxd5 {[%clk 0:02:46]} 8. a3 {[%clk 0:02:37]}  Be7 {[%clk 0:02:42]} 9. Nf4 {[%clk 0:02:37]}  Nxc3 {[%clk 0:02:27]} 10. bxc3 {[%clk 0:02:38]}  Bf5 {[%clk 0:02:11]} 11. Bc4 {[%clk 0:02:35]}  Nd7 {[%clk 0:02:07]} 12. O-O {[%clk 0:02:34]}  c6 {[%clk 0:02:00]} 13. a4 {[%clk 0:02:28]}  Bd6 {[%clk 0:01:51]} 14. a5 {[%clk 0:02:19]}  Qc7 {[%clk 0:01:37]} 15. Qf3 {[%clk 0:02:18]}  Rae8 {[%clk 0:01:31]} 16. h3 {[%clk 0:02:12]}  Be4 {[%clk 0:01:28]} 17. Qg4 {[%clk 0:02:04]}  Nf6 {[%clk 0:01:26]} 18. Qh4 {[%clk 0:02:04]}  Nd5 {[%clk 0:01:16]} 19. Nh5 {[%clk 0:01:55]}  Bg6 {[%clk 0:01:03]} 20. Bxd5 {[%clk 0:01:42]}  cxd5 {[%clk 0:01:02]} 21. Nxg7 {[%clk 0:01:40]}  Re4 {[%clk 0:00:25]} 22. Qh6 {[%clk 0:01:39]}  Rc8 {[%clk 0:00:21]} 23. Nh5 {[%clk 0:01:27]}  Bf8 {[%clk 0:00:16]} 24. Nf6+ {[%clk 0:01:27]}  Kh8 {[%clk 0:00:16]} 25. Qd2 {[%clk 0:01:16]}  Re6 {[%clk 0:00:16]} 26. Nxd5 {[%clk 0:01:16]}  Qc6 {[%clk 0:00:16]} 27. Nf4 {[%clk 0:01:14]}  Rf6 {[%clk 0:00:14]} 28. Nxg6+ {[%clk 0:01:10]}  hxg6 {[%clk 0:00:13]} 29. Bb2 {[%clk 0:01:10]}  Rf5 {[%clk 0:00:07]} 30. c4 {[%clk 0:01:10]}  Kh7 {[%clk 0:00:04]} 31. d5 {[%clk 0:01:09]}  Qd7 {[%clk 0:00:04]} 32. Rac1 {[%clk 0:01:07]}  Bh6 {[%clk 0:00:04]} 33. Qd4 {[%clk 0:01:02]}  Rg5 {[%clk 0:00:00]} 34. Rc3 {[%clk 0:00:53]} 1-0


[Site "https://www.chess.com"]

[Event "Titled Tuesday Blitz August 1 Early 2023"]
[White "sterpfi"]
[Black "Barwinska, Ewa"]
[BlackFideId "21833761"]
[WhiteElo "2200"]
[BlackElo "2279"]
[Result "0-1"]
[Round "10"]
[TimeControl "180+1"]
[Date "2023.08.01"]
[WhiteClock "0:00:10"]
[BlackClock "0:00:07"]
[Board "163"]

1. e4 {[%clk 0:03:00]}  c5 {[%clk 0:02:59]} 2. Nf3 {[%clk 0:03:00]}  d6 {[%clk 0:02:59]} 3. Bb5+ {[%clk 0:02:59]}  Bd7 {[%clk 0:02:57]} 4. Bxd7+ {[%clk 0:02:58]}  Qxd7 {[%clk 0:02:58]} 5. c4 {[%clk 0:02:57]}  Nc6 {[%clk 0:02:57]} 6. Nc3 {[%clk 0:02:56]}  Nd4 {[%clk 0:02:51]} 7. Nxd4 {[%clk 0:02:47]}  cxd4 {[%clk 0:02:52]} 8. Ne2 {[%clk 0:02:48]}  e5 {[%clk 0:02:33]} 9. d3 {[%clk 0:02:48]}  Be7 {[%clk 0:02:30]} 10. O-O {[%clk 0:02:47]}  Nf6 {[%clk 0:02:29]} 11. f4 {[%clk 0:02:42]}  O-O {[%clk 0:02:29]} 12. Ng3 {[%clk 0:02:41]}  Rfe8 {[%clk 0:02:17]} 13. fxe5 {[%clk 0:02:23]}  dxe5 {[%clk 0:02:15]} 14. Nf5 {[%clk 0:02:24]}  Bf8 {[%clk 0:02:16]} 15. Bg5 {[%clk 0:02:21]}  Re6 {[%clk 0:02:03]} 16. Bxf6 {[%clk 0:02:02]}  Rxf6 {[%clk 0:02:04]} 17. Qg4 {[%clk 0:02:02]}  Kh8 {[%clk 0:01:52]} 18. Nh6 {[%clk 0:01:42]}  Qxg4 {[%clk 0:01:43]} 19. Nxg4 {[%clk 0:01:43]}  Rxf1+ {[%clk 0:01:43]} 20. Rxf1 {[%clk 0:01:43]}  f6 {[%clk 0:01:43]} 21. Kf2 {[%clk 0:01:31]}  Kg8 {[%clk 0:01:42]} 22. Ke2 {[%clk 0:01:30]}  Bd6 {[%clk 0:01:40]} 23. Nf2 {[%clk 0:01:26]}  Kf7 {[%clk 0:01:39]} 24. a3 {[%clk 0:01:23]}  a5 {[%clk 0:01:39]} 25. Rb1 {[%clk 0:01:23]}  Ke6 {[%clk 0:01:37]} 26. Nd1 {[%clk 0:01:15]}  g6 {[%clk 0:01:34]} 27. b3 {[%clk 0:01:15]}  f5 {[%clk 0:01:33]} 28. b4 {[%clk 0:00:59]}  axb4 {[%clk 0:01:32]} 29. axb4 {[%clk 0:01:00]}  Ra2+ {[%clk 0:01:30]} 30. Kf3 {[%clk 0:01:00]}  Rd2 {[%clk 0:01:10]} 31. Nf2 {[%clk 0:00:59]}  b6 {[%clk 0:01:05]} 32. b5 {[%clk 0:00:56]}  fxe4+ {[%clk 0:00:51]} 33. dxe4 {[%clk 0:00:49]}  Rc2 {[%clk 0:00:52]} 34. Ra1 {[%clk 0:00:29]}  Rxc4 {[%clk 0:00:52]} 35. Ra8 {[%clk 0:00:29]}  Rc3+ {[%clk 0:00:49]} 36. Ke2 {[%clk 0:00:27]}  Rc2+ {[%clk 0:00:43]} 37. Kf3 {[%clk 0:00:26]}  Rb2 {[%clk 0:00:43]} 38. Re8+ {[%clk 0:00:19]}  Kd7 {[%clk 0:00:42]} 39. Rh8 {[%clk 0:00:19]}  Rxb5 {[%clk 0:00:39]} 40. Rxh7+ {[%clk 0:00:18]}  Ke6 {[%clk 0:00:39]} 41. Rg7 {[%clk 0:00:18]}  Kf6 {[%clk 0:00:36]} 42. Rd7 {[%clk 0:00:18]}  Ke6 {[%clk 0:00:35]} 43. Rg7 {[%clk 0:00:18]}  Rb3+ {[%clk 0:00:36]} 44. Kg4 {[%clk 0:00:18]}  d3 {[%clk 0:00:32]} 45. Rxg6+ {[%clk 0:00:18]}  Kd7 {[%clk 0:00:32]} 46. Kf3 {[%clk 0:00:17]}  Bc5 {[%clk 0:00:29]} 47. Rg7+ {[%clk 0:00:15]}  Kc6 {[%clk 0:00:24]} 48. Rg6+ {[%clk 0:00:14]}  Kb5 {[%clk 0:00:23]} 49. Ng4 {[%clk 0:00:12]}  d2+ {[%clk 0:00:15]} 50. Ke2 {[%clk 0:00:13]}  Bb4 {[%clk 0:00:15]} 51. Re6 {[%clk 0:00:12]}  Rb1 {[%clk 0:00:14]} 52. Rxe5+ {[%clk 0:00:12]}  Ka4 {[%clk 0:00:14]} 53. Rd5 {[%clk 0:00:13]}  Re1+ {[%clk 0:00:14]} 54. Kf2 {[%clk 0:00:13]}  d1=Q {[%clk 0:00:13]} 55. Rxd1 {[%clk 0:00:14]}  Rxd1 {[%clk 0:00:13]} 56. Ne3 {[%clk 0:00:14]}  Rd2+ {[%clk 0:00:12]} 57. Kf3 {[%clk 0:00:14]}  Bc5 {[%clk 0:00:12]} 58. Nd5 {[%clk 0:00:13]}  Rd3+ {[%clk 0:00:12]} 59. Kf4 {[%clk 0:00:13]}  Rd2 {[%clk 0:00:12]} 60. g4 {[%clk 0:00:13]}  Rxh2 {[%clk 0:00:11]} 61. g5 {[%clk 0:00:14]}  Rg2 {[%clk 0:00:10]} 62. Kf5 {[%clk 0:00:14]}  b5 {[%clk 0:00:09]} 63. g6 {[%clk 0:00:13]}  b4 {[%clk 0:00:08]} 64. Nxb4 {[%clk 0:00:10]}  Kxb4 {[%clk 0:00:08]} 65. e5 {[%clk 0:00:09]}  Bf8 {[%clk 0:00:07]} 66. Kf6 {[%clk 0:00:10]}  Kc5 {[%clk 0:00:07]} 67. Kf7 {[%clk 0:00:08]}  Rf2+ {[%clk 0:00:08]} 68. Kg8 {[%clk 0:00:06]}  Kd5 {[%clk 0:00:07]} 69. g7 {[%clk 0:00:06]}  Bxg7 {[%clk 0:00:07]} 70. Kxg7 {[%clk 0:00:07]}  Kxe5 {[%clk 0:00:08]} 71. Kg6 {[%clk 0:00:08]}  Rf5 {[%clk 0:00:08]} 72. Kh6 {[%clk 0:00:08]}  Kf6 {[%clk 0:00:06]} 73. Kh7 {[%clk 0:00:08]}  Rg5 {[%clk 0:00:07]} 74. Kh8 {[%clk 0:00:08]}  Rg6 {[%clk 0:00:06]} 75. Kh7 {[%clk 0:00:09]}  Kf7 {[%clk 0:00:07]} 76. Kh8 {[%clk 0:00:10]}  Rh6# {[%clk 0:00:07]} 0-1


[Site "https://www.chess.com"]